fUSD/lending_fUSD_20241111
["ID","MTS","AMOUNT","RATE_DAILY","PERIOD"]
[342000424,1731355848231,-1212.28505161,0.00013979,2]
[342000425,1731355848240,-944.54,0.00013979,2]
[342000428,1731355848249,-944.54,0.00013979,2]
[342000430,1731355848262,-944.54,0.00013979,2]
[342000432,1731355848272,-944.54,0.00013979,2]
[342000433,1731355848281,-3178.89,0.00013979,2]
[342000435,1731355848291,-944.54,0.00013979,2]
[342000437,1731355848300,-3178.89,0.00013979,2]
[342000439,1731355848310,-944.54,0.00013979,2]
[342000441,1731355848320,-3178.89,0.00013979,2]
[342000443,1731355848329,-3178.89,0.00013979,2]
[342000445,1731355848339,-944.54,0.00013979,2]
[342000447,1731355848348,-3178.89,0.00013979,2]
[342000449,1731355848358,-3178.89,0.00013979,2]
[342000451,1731355848367,-944.54,0.00013979,2]
[342000453,1731355848377,-3178.89,0.00013979,2]
[342000455,1731355848387,-944.54,0.00013979,2]
[342000457,1731355848396,-3178.89,0.00013979,2]
[342000459,1731355848406,-944.54,0.00013979,2]
[342000461,1731355848415,-3178.89,0.00013979,2]
[342000463,1731355848424,-944.59859983,0.00013979,2]
[342000465,1731355848434,-3178.89,0.00013979,2]
[342000467,1731355848443,-3178.91,0.00013979,2]
[342000469,1731355848452,-500.0,0.00013979,2]
[342000472,1731355848462,-500.0,0.00013979,2]
[342000474,1731355848472,-500.0,0.00013979,2]
[342000475,1731355848481,-500.0,0.00013979,2]
[342000477,1731355848490,-500.0,0.00013979,2]
[342000479,1731355848499,-500.0,0.00013979,2]
[342000481,1731355848510,-264.09574903,0.00013979,2]
[342000483,1731355848520,-2813.82,0.00013979,2]
[342000486,1731355848530,-2813.82,0.00013979,2]
[342000488,1731355848539,-2813.82,0.00013979,2]
[342000490,1731355848548,-1846.7,0.00013979,2]
[342000492,1731355848557,-500.0,0.00013979,2]
[342000493,1731355848566,-1846.7,0.00013979,2]
[342000496,1731355848576,-2813.82,0.00013979,2]
[342000497,1731355848585,-1846.7,0.00013979,2]
[342000500,1731355848595,-2813.82,0.00013979,2]
[342000501,1731355848604,-500.0,0.00013979,2]
[342000504,1731355848614,-1846.7,0.00013979,2]
[342000506,1731355848623,-2813.82,0.00013979,2]
[342000507,1731355848633,-500.0,0.00013979,2]
[342000509,1731355848642,-500.0,0.00013979,2]
[342000512,1731355848652,-1846.7,0.00013979,2]
[342000514,1731355848661,-2813.82,0.00013979,2]
[342000515,1731355848671,-500.0,0.00013979,2]
[342000517,1731355848680,-1846.7,0.00013979,2]
[342000519,1731355848689,-2813.82,0.00013979,2]
[342000521,1731355848698,-500.0,0.00013979,2]
[342000523,1731355848708,-2813.82,0.00013979,2]
[342000525,1731355848717,-1846.7,0.00013979,2]
[342000527,1731355848726,-2813.82,0.00013979,2]
[342000529,1731355848735,-631.47806503,0.00013979,2]
[342000531,1731355848744,-1846.7,0.00013979,2]
[342000533,1731355848753,-2813.92949039,0.00013979,2]
[342000535,1731355848765,-1846.7,0.00013979,2]
[342000537,1731355848774,-1846.7,0.00013979,2]
[342000539,1731355848783,-1846.7,0.00013979,2]
[342000541,1731355848792,-1846.82329142,0.00013979,2]
[342000543,1731355848802,-1554.16,0.00013979,2]
[342000545,1731355848811,-1554.16,0.00013979,2]
[342000547,1731355848821,-1554.16,0.00013979,2]
[342000549,1731355848831,-1554.16,0.00013979,2]
[342000551,1731355848841,-1554.16,0.00013979,2]
[342000553,1731355848850,-1554.16,0.00013979,2]
[342000555,1731355848860,-1554.16,0.00013979,2]
[342000557,1731355848869,-1554.16,0.00013979,2]
[342000559,1731355848879,-1554.16,0.00013979,2]
[342000561,1731355848889,-1554.16,0.00013979,2]
[342000563,1731355848899,-1554.16,0.00013979,2]
[342000565,1731355848909,-1554.22952669,0.00013979,2]
[342000567,1731355848921,-660.63,0.00013979,2]
[342000569,1731355848930,-660.63,0.00013979,2]
[342000571,1731355848939,-660.63,0.00013979,2]
[342000573,1731355848949,-660.63,0.00013979,2]
[342000575,1731355848959,-660.63,0.00013979,2]
[342000577,1731355848969,-660.63,0.00013979,2]
[342000579,1731355848979,-660.63,0.00013979,2]
[342000581,1731355848989,-660.63,0.00013979,2]
[342000583,1731355849002,-660.63,0.00013979,2]
[342000584,1731355849014,-660.63,0.00013979,2]
[342000585,1731355849023,-660.63,0.00013979,2]
[342000586,1731355849033,-660.73,0.00013979,2]
[342000587,1731355849043,-500.0,0.00013979,2]
[342000588,1731355849052,-500.0,0.00013979,2]
[342000589,1731355849061,-500.0,0.00013979,2]
[342000590,1731355849072,-500.0,0.00013979,2]
[342000591,1731355849081,-500.0,0.00013979,2]
[342000592,1731355849091,-500.0,0.00013979,2]
[342000593,1731355849101,-579.7,0.00013979,2]
[342000595,1731355849110,-459152.31422037,0.0001398,2]
[342000598,1731355849126,-862.45159,0.0001398,2]
[342000601,1731355849144,-375.85517104,0.00013972,2]
[342000603,1731355849155,-124.14482896,0.00013972,2]
[342000605,1731355849165,-1359.34892536,0.0001398,2]
[342000607,1731355849176,-1221.72,0.0001398,2]
[342000609,1731355849188,-456.80005735,0.0001398,2]
[342000611,1731355849199,-347.14482896,0.0001398,2]
[342000614,1731355849211,-391.93289416,0.0001398,2]
[342000616,1731355849221,-1748.9835148,0.0001398,2]
[342000618,1731355849232,-468498.48421211,0.0001398,2]
[342000620,1731355849244,-432.87434618,0.0001398,2]
[342000622,1731355849255,-295.3878403,0.0001398,2]
[342000625,1731355849268,-2189.5392959,0.0001398,2]
[342000627,1731355849284,-12658.58526291,0.0001398,2]
[342000629,1731355849295,-6646.89595268,0.0001398,2]
[342001963,1731356262739,168.7454451,0.00013944,10]
[342001973,1731356719990,150.0,9e-05,2]
[342001974,1731356720013,150.0,9e-05,2]
[342001975,1731356720036,595.12103777,9e-05,2]
[342001976,1731356736668,5758.30629545,0.0002,30]
[342001977,1731356755886,150.0,6.94e-05,2]
[342001978,1731356755907,150.0,6.94e-05,2]
[342001979,1731356755928,150.0,6.94e-05,2]
[342001980,1731356755949,150.0,6.94e-05,2]
[342001981,1731356755970,150.0,6.94e-05,2]
[342001982,1731356755992,587.87896223,6.94e-05,2]
[342001984,1731356794018,736.26,0.0001056,2]
[342001985,1731356858592,250.0,0.00012304,2]
[342001988,1731356880882,766.33,0.00012318,2]
[342001999,1731357015349,190.56,0.00012217,2]
[342002000,1731357023962,200.0,0.00012281,2]
[342002010,1731357032217,-3994.36,0.00012329,2]
[342002011,1731357032227,-300.0,0.00012338,2]
[342002012,1731357032237,-23900.0,0.00012339,2]
[342002013,1731357032246,-150.0,0.0001258,2]
[342002014,1731357032255,-1000.0,0.00012581,2]
[342002015,1731357032264,-250.0,0.00012581,2]
[342002017,1731357032274,-25292.50571288,0.00012581,2]
[342002019,1731357032285,-976.68107312,0.00012581,2]
[342002020,1731357032873,-620.42152961,0.00012581,2]
[342002021,1731357032884,-2565.67043885,0.00012581,2]
[342002022,1731357032896,-3343.96097844,0.00012581,2]
[342002023,1731357032910,-8800.23695535,0.00012581,2]
[342002024,1731357032931,-581.71666119,0.00012581,2]
[342002025,1731357032943,-3123.67680674,0.00012581,2]
[342002026,1731357032952,-200.0,0.00012662,2]
[342002027,1731357032962,-3798.38,0.00012706,2]
[342002028,1731357032971,-680.06,0.00012738,2]
[342002029,1731357032981,-498.0,0.00012741,2]
[342002030,1731357032990,-926.87785102,0.00012794,2]
[342002031,1731357032999,-2772.39,0.00012794,2]
[342002032,1731357033008,-307.92,0.00012794,2]
[342002033,1731357033018,-204.69,0.00012794,2]
[342002034,1731357033027,-299.99,0.00012794,2]
[342002035,1731357033036,-150.99,0.00012803,2]
[342002036,1731357033045,-3994.36,0.00012803,2]
[342002037,1731357033055,-325.17,0.00012806,2]
[342002038,1731357033064,-736.26,0.00012824,2]
[342002039,1731357033074,-170.0,0.00012884,2]
[342002040,1731357033083,-25244.29509749,0.00012894,2]
[342002041,1731357033101,-4755.69490251,0.00012894,2]
[342002042,1731357033111,-273.02,0.00012894,2]
[342002043,1731357033120,-192.20077345,0.0001299,2]
[342002044,1731357033130,-150.0,0.00012998,2]
[342002045,1731357033139,-150.0,0.00012998,2]
[342002046,1731357033149,-150.0,0.00012998,2]
[342002047,1731357033160,-150.0,0.00012998,2]
[342002048,1731357033170,-150.0,0.00012998,2]
[342002049,1731357033180,-150.0,0.00012998,2]
[342002050,1731357033190,-150.0,0.00012998,2]
[342002051,1731357033200,-150.0,0.00012998,2]
[342002052,1731357033210,-150.0,0.00012998,2]
[342002053,1731357033219,-150.0,0.00012998,2]
[342002054,1731357033229,-150.0,0.00012998,2]
[342002055,1731357033239,-150.0,0.00012998,2]
[342002056,1731357033249,-150.0,0.00012998,2]
[342002057,1731357033259,-150.0,0.00012998,2]
[342002058,1731357033268,-150.0,0.00012998,2]
[342002059,1731357033278,-150.0,0.00012998,2]
[342002060,1731357033288,-224.24233273,0.00012998,2]
[342002061,1731357033298,-150.110806,0.00012998,2]
[342002062,1731357033308,-355.34534218,0.00012999,2]
[342002063,1731357033321,-500.0,0.00012999,2]
[342002064,1731357033330,-165.24790817,0.00012999,2]
[342002065,1731357033340,-49.81018453,0.00012999,2]
[342002066,1731357035420,-328.4348001,0.00012999,2]
[342002086,1731357038421,-503.1176,0.000129,2]
[342002087,1731357038430,-366.0024,0.00012999,2]
[342002088,1731357038478,-255.75261537,0.00012999,2]
[342002089,1731357038487,-15100.53688812,0.00013,2]
[342002090,1731357038556,-652.96532099,0.00013,2]
[342002091,1731357038567,-543.42108632,0.00013,2]
[342002092,1731357038578,-87450.24352452,0.00013,2]
[342002093,1731357038589,-4380.181192,0.00013,2]
[342002094,1731357038604,-1005804.08025041,0.00013,2]
[342002095,1731357038613,-185.37767607,0.00013177,2]
[342002096,1731357038622,-3994.36,0.00013277,2]
[342002097,1731357038631,-1301.2541,0.000133,2]
[342002098,1731357038640,-500.0,0.00013399,2]
[342002099,1731357038649,-500.0,0.00013399,2]
[342002100,1731357038659,-500.0,0.00013399,2]
[342002101,1731357038669,-500.0,0.00013399,2]
[342002102,1731357038679,-500.0,0.00013399,2]
[342002103,1731357038688,-500.0,0.00013399,2]
[342002104,1731357038697,-500.0,0.00013399,2]
[342002105,1731357038706,-500.0,0.00013399,2]
[342002106,1731357038715,-208.69354909,0.00013399,2]
[342002107,1731357038724,-500.0,0.00013399,2]
[342002108,1731357038733,-330.66227853,0.00013399,2]
[342002109,1731357038743,-500.0,0.00013399,2]
[342002110,1731357038752,-500.0,0.00013399,2]
[342002111,1731357038761,-500.0,0.00013399,2]
[342002112,1731357038770,-500.0,0.00013399,2]
[342002113,1731357038779,-500.0,0.00013399,2]
[342002114,1731357038788,-500.0,0.00013399,2]
[342002115,1731357038797,-500.0,0.00013399,2]
[342002116,1731357038806,-500.0,0.00013399,2]
[342002117,1731357038815,-500.0,0.00013399,2]
[342002118,1731357038823,-500.0,0.00013399,2]
[342002119,1731357038833,-500.0,0.00013399,2]
[342002120,1731357038841,-500.0,0.00013399,2]
[342002121,1731357038850,-500.0,0.00013399,2]
[342002122,1731357038859,-500.0,0.00013399,2]
[342002123,1731357038869,-500.0,0.00013399,2]
[342002124,1731357038878,-1079722.14,0.000134,5]
[342002125,1731357038887,-190.56,0.00013439,2]
[342002126,1731357038896,-185.37767606,0.00013539,2]
[342002127,1731357038905,-420.0,0.0001354,2]
[342002128,1731357038916,-150.0,0.00013549,2]
[342002129,1731357038925,-224.722182,0.00013619,2]
[342002131,1731357038934,-1056.42593388,0.00013665,2]
[342002132,1731357038943,-1036.81516474,0.00013665,2]
[342002133,1731357038952,-255.0,0.00013674,2]
[342002134,1731357038961,-628.0,0.00013692,2]
[342002135,1731357038970,-4080.80793824,0.00013697,2]
[342002136,1731357038979,-500.0,0.00013698,2]
[342002137,1731357039249,-500.0,0.00013698,2]
[342002138,1731357039259,-500.0,0.00013698,2]
[342002139,1731357039269,-448.37065818,0.00013698,2]
[342002140,1731357039278,-500.0,0.00013698,2]
[342002141,1731357039287,-500.0,0.00013698,2]
[342002142,1731357039296,-500.0,0.00013698,2]
[342002143,1731357039306,-500.0,0.00013698,2]
[342002144,1731357039315,-500.0,0.00013698,2]
[342002145,1731357039328,-561.17,0.00013698,2]
[342002146,1731357039337,-686.89,0.00013698,2]
[342002147,1731357039347,-686.89,0.00013698,2]
[342002148,1731357039356,-686.89,0.00013698,2]
[342002149,1731357039367,-686.89,0.00013698,2]
[342002150,1731357039376,-686.89,0.00013698,2]
[342002151,1731357039385,-686.89,0.00013698,2]
[342002152,1731357039396,-686.89,0.00013698,2]
[342002153,1731357039406,-686.89,0.00013698,2]
[342002154,1731357039418,-500.0,0.00013698,2]
[342002155,1731357039427,-686.89,0.00013698,2]
[342002156,1731357039437,-500.0,0.00013698,2]
[342002157,1731357039446,-500.0,0.00013698,2]
[342002158,1731357039455,-500.0,0.00013698,2]
[342002159,1731357039464,-500.0,0.00013698,2]
[342002160,1731357039474,-500.0,0.00013698,2]
[342002161,1731357039483,-500.0,0.00013698,2]
[342002162,1731357039492,-500.0,0.00013698,2]
[342002163,1731357039502,-500.0,0.00013698,2]
[342002164,1731357039511,-500.0,0.00013698,2]
[342002165,1731357039520,-500.0,0.00013698,2]
[342002166,1731357039529,-500.0,0.00013698,2]
[342002167,1731357039538,-500.0,0.00013698,2]
[342002168,1731357039547,-500.0,0.00013698,2]
[342002169,1731357039556,-500.0,0.00013698,2]
[342002170,1731357039565,-500.0,0.00013698,2]
[342002171,1731357039575,-500.0,0.00013698,2]
[342002172,1731357039584,-500.0,0.00013698,2]
[342002173,1731357039593,-500.0,0.00013698,2]
[342002174,1731357039602,-500.0,0.00013698,2]
[342002175,1731357039611,-500.0,0.00013698,2]
[342002176,1731357039620,-500.0,0.00013698,2]
[342002177,1731357039630,-500.0,0.00013698,2]
[342002178,1731357039639,-500.0,0.00013698,2]
[342002179,1731357039648,-500.0,0.00013698,2]
[342002180,1731357039659,-500.0,0.00013698,2]
[342002181,1731357039668,-529.81,0.00013698,2]
[342002182,1731357039677,-529.81,0.00013698,2]
[342002183,1731357039686,-529.81,0.00013698,2]
[342002184,1731357039696,-529.81,0.00013698,2]
[342002185,1731357039705,-529.81,0.00013698,2]
[342002186,1731357039714,-529.81,0.00013698,2]
[342002187,1731357039723,-529.81,0.00013698,2]
[342002188,1731357039732,-529.81,0.00013698,2]
[342002189,1731357039741,-529.81,0.00013698,2]
[342002190,1731357039750,-500.0,0.00013698,2]
[342002191,1731357039759,-500.0,0.00013698,2]
[342002192,1731357039768,-444.54,0.00013698,2]
[342002193,1731357039777,-500.0,0.00013698,2]
[342002194,1731357039786,-500.0,0.00013698,2]
[342002195,1731357039795,-500.0,0.00013698,2]
[342002196,1731357039805,-500.0,0.00013698,2]
[342002197,1731357039814,-500.0,0.00013698,2]
[342002198,1731357039823,-500.0,0.00013698,2]
[342002199,1731357039833,-500.0,0.00013698,2]
[342002200,1731357039842,-500.0,0.00013698,2]
[342002201,1731357039851,-500.0,0.00013698,2]
[342002202,1731357039860,-500.0,0.00013698,2]
[342002203,1731357039869,-500.0,0.00013698,2]
[342002204,1731357039878,-500.0,0.00013698,2]
[342002205,1731357039887,-500.0,0.00013698,2]
[342002206,1731357039896,-500.0,0.00013698,2]
[342002207,1731357039906,-500.0,0.00013698,2]
[342002208,1731357039917,-396.23013326,0.00013698,2]
[342002209,1731357039926,-500.0,0.00013698,2]
[342002210,1731357039935,-500.0,0.00013698,2]
[342002211,1731357039944,-500.0,0.00013698,2]
[342002212,1731357039953,-522.5,0.00013698,2]
[342002213,1731357039962,-500.0,0.00013698,2]
[342002214,1731357039971,-500.0,0.00013698,2]
[342002215,1731357039979,-500.0,0.00013698,2]
[342002216,1731357039988,-500.0,0.00013698,2]
[342002217,1731357039997,-500.0,0.00013698,2]
[342002218,1731357040006,-500.0,0.00013698,2]
[342002219,1731357040015,-500.0,0.00013698,2]
[342002220,1731357040024,-500.0,0.00013698,2]
[342002221,1731357040032,-500.0,0.00013698,2]
[342002222,1731357040041,-1328.74,0.00013698,2]
[342002223,1731357040050,-1328.74,0.00013698,2]
[342002224,1731357040059,-1328.74,0.00013698,2]
[342002225,1731357040068,-1328.74,0.00013698,2]
[342002226,1731357040078,-500.0,0.00013698,2]
[342002227,1731357040087,-500.0,0.00013698,2]
[342002228,1731357040096,-500.0,0.00013698,2]
[342002229,1731357040105,-500.0,0.00013698,2]
[342002230,1731357040114,-560.17,0.00013698,2]
[342002232,1731357040123,-560.17,0.00013698,2]
[342002233,1731357040131,-560.17,0.00013698,2]
[342002235,1731357040140,-560.17,0.00013698,2]
[342002237,1731357040149,-560.17,0.00013698,2]
[342002238,1731357040159,-560.17,0.00013698,2]
[342002239,1731357040169,-560.17,0.00013698,2]
[342002240,1731357040178,-560.17,0.00013698,2]
[342002242,1731357040187,-560.17,0.00013698,2]
[342002243,1731357040196,-500.0,0.00013698,2]
[342002244,1731357040205,-500.0,0.00013698,2]
[342002245,1731357040214,-500.0,0.00013698,2]
[342002247,1731357040223,-500.0,0.00013698,2]
[342002248,1731357040232,-500.0,0.00013698,2]
[342002249,1731357040242,-2403.1,0.00013698,2]
[342002250,1731357040251,-2403.1,0.00013698,2]
[342002251,1731357040260,-2403.1,0.00013698,2]
[342002252,1731357040270,-500.0,0.00013698,2]
[342002253,1731357040279,-2403.1,0.00013698,2]
[342002254,1731357040289,-500.0,0.00013698,2]
[342002255,1731357040298,-500.0,0.00013698,2]
[342002256,1731357040307,-500.0,0.00013698,2]
[342002257,1731357040321,-500.0,0.00013698,2]
[342002258,1731357040332,-500.0,0.00013698,2]
[342002259,1731357040341,-500.0,0.00013698,2]
[342002260,1731357040350,-500.0,0.00013698,2]
[342002261,1731357040360,-500.0,0.00013698,2]
[342002262,1731357040369,-500.0,0.00013698,2]
[342002263,1731357040378,-500.0,0.00013698,2]
[342002264,1731357040387,-163.11961724,0.00013698,2]
[342002265,1731357040396,-500.0,0.00013698,2]
[342002266,1731357040406,-500.0,0.00013698,2]
[342002267,1731357040418,-500.0,0.00013698,2]
[342002268,1731357040427,-250.0,0.00013699,2]
[342002269,1731357040436,-150.0,0.00013699,2]
[342002270,1731357040445,-500.0,0.00013699,2]
[342002271,1731357040454,-500.0,0.00013699,2]
[342002272,1731357040463,-500.0,0.00013699,2]
[342002273,1731357040472,-368.89171456,0.00013699,2]
[342002274,1731357040481,-200.0,0.000137,2]
[342002275,1731357040491,-1127.02837832,0.000137,2]
[342002276,1731357040500,-1016.41035475,0.000137,2]
[342002277,1731357040509,-3994.36,0.00013751,2]
[342002278,1731357040518,-563.0,0.00013764,2]
[342002279,1731357040527,-631.0,0.00013764,2]
[342002280,1731357040536,-406.316,0.00013764,2]
[342002281,1731357040545,-406.64501894,0.00013767,2]
[342002282,1731357040555,-1060.0477,0.00013772,2]
[342002283,1731357040564,-13089.1643,0.00013773,2]
[342002284,1731357040573,-5791.9621,0.000138,2]
[342002285,1731357040582,-116821.0218442,0.000138,2]
[342002286,1731357040591,-270.13584,0.000138,2]
[342002287,1731357040600,-283.0564,0.00013879,2]
[342002288,1731357040609,-7885.0382,0.0001388,2]
[342002289,1731357040618,-160.4016009,0.0001388,2]
[342002290,1731357040627,-500.0,0.000139,2]
[342002291,1731357040636,-160.12749907,0.000139,2]
[342002292,1731357040645,-160.12749907,0.000139,2]
[342002293,1731357040654,-160.12749907,0.000139,2]
[342002294,1731357040665,-160.12749907,0.000139,2]
[342002295,1731357040675,-160.12749907,0.000139,2]
[342002296,1731357040684,-160.12749907,0.000139,2]
[342002297,1731357040693,-160.12749907,0.000139,2]
[342002298,1731357040703,-160.12749907,0.000139,2]
[342002299,1731357040712,-160.12749907,0.000139,2]
[342002300,1731357040721,-160.12,0.000139,2]
[342002301,1731357040730,-185.37767606,0.000139,2]
[342002303,1731357040740,-424.70051442,0.000139,2]
[342002304,1731357040749,-500.0,0.00013957,2]
[342002305,1731357040758,-500.0,0.00013957,2]
[342002306,1731357040767,-396.78,0.00013957,2]
[342002307,1731357040776,-500.0,0.00013957,2]
[342002308,1731357040785,-500.0,0.00013957,2]
[342002309,1731357040795,-529.81,0.00013957,2]
[342002310,1731357040804,-377.50785632,0.00013957,2]
[342002311,1731357040813,-500.0,0.00013957,2]
[342002312,1731357040823,-1328.74,0.00013957,2]
[342002313,1731357040832,-500.0,0.00013957,2]
[342002314,1731357040842,-500.0,0.00013957,2]
[342002315,1731357040851,-2403.1,0.00013957,2]
[342002316,1731357040860,-616.34,0.00013957,2]
[342002317,1731357040869,-38546.88979403,0.00013958,2]
[342002318,1731357040878,-11705.2884456,0.00013967,2]
[342002319,1731357040887,-4518.4262359,0.00013967,2]
[342002320,1731357040896,-10104.6371381,0.00013967,2]
[342002321,1731357040905,-1058.593172,0.00013967,2]
[342002322,1731357040915,-2636.54041,0.00013967,2]
[342002323,1731357040924,-500.0,0.0001397,2]
[342002324,1731357040934,-192.20077345,0.0001397,2]
[342002325,1731357040943,-500.0,0.00013971,2]
[342002326,1731357040952,-500.0,0.00013971,2]
[342002327,1731357040961,-686.89,0.00013971,2]
[342002328,1731357040970,-560.17,0.00013971,2]
[342002329,1731357040979,-500.0,0.00013972,2]
[342002330,1731357040988,-500.0,0.00013972,2]
[342002331,1731357040997,-389.61,0.00013972,2]
[342002332,1731357041006,-70560.05397707,0.00013973,2]
[342002333,1731357041016,-1737.14582749,0.00013973,2]
[342002334,1731357041025,-500.0,0.00013977,2]
[342002335,1731357041033,-1086.44,0.00013977,2]
[342002336,1731357041042,-500.0,0.00013977,2]
[342002337,1731357041051,-500.0,0.00013977,2]
[342002338,1731357041060,-500.0,0.00013977,2]
[342002339,1731357041069,-500.0,0.00013977,2]
[342002340,1731357041077,-500.0,0.00013977,2]
[342002341,1731357041086,-500.0,0.00013977,2]
[342002342,1731357041095,-500.0,0.00013977,2]
[342002343,1731357041104,-500.0,0.00013977,2]
[342002344,1731357041113,-370.5,0.00013977,2]
[342002345,1731357041122,-500.0,0.00013977,2]
[342002346,1731357041132,-539.40701988,0.00013977,2]
[342002347,1731357041141,-500.0,0.00013977,2]
[342002348,1731357041150,-501.03765769,0.00013977,2]
[342002349,1731357041159,-500.0,0.00013977,2]
[342002350,1731357041170,-500.0,0.00013977,2]
[342002351,1731357041179,-500.0,0.00013977,2]
[342002352,1731357041188,-748.72,0.00013977,2]
[342002353,1731357041198,-872.05,0.00013977,2]
[342002354,1731357041206,-733.9,0.00013977,2]
[342002355,1731357041215,-500.0,0.00013977,2]
[342002356,1731357041224,-500.0,0.00013977,2]
[342002357,1731357041233,-500.0,0.00013978,2]
[342002358,1731357041242,-500.0,0.00013978,2]
[342002359,1731357041251,-500.0,0.00013978,2]
[342002360,1731357041260,-500.0,0.00013978,2]
[342002361,1731357041269,-500.0,0.00013978,2]
[342002362,1731357041278,-500.0,0.00013978,2]
[342002363,1731357041287,-502.00879536,0.00013978,2]
[342002364,1731357041295,-500.0,0.00013978,2]
[342002365,1731357041304,-505.74639957,0.00013978,2]
[342002366,1731357041313,-500.0,0.00013978,2]
[342002367,1731357041327,-163.71599205,0.00013978,2]
[342002368,1731357041336,-587.63756745,0.00013978,2]
[342002369,1731357041346,-500.0,0.00013978,2]
[342002370,1731357041355,-500.0,0.00013978,2]
[342002371,1731357041366,-500.0,0.00013978,2]
[342002372,1731357041375,-665.46,0.00013978,2]
[342002373,1731357041385,-500.0,0.00013978,2]
[342002374,1731357041396,-500.0,0.00013978,2]
[342002375,1731357041406,-500.0,0.00013978,2]
[342002376,1731357041418,-500.0,0.00013978,2]
[342002377,1731357041428,-500.0,0.00013978,2]
[342002378,1731357041437,-500.0,0.00013978,2]
[342002379,1731357041446,-500.0,0.00013978,2]
[342002380,1731357041455,-267.78621843,0.00013978,2]
[342002381,1731357041464,-503.45146857,0.00013978,2]
[342002382,1731357041473,-500.0,0.00013978,2]
[342002383,1731357041484,-1164.58,0.00013978,2]
[342002384,1731357041493,-500.0,0.00013978,2]
[342002385,1731357041502,-500.0,0.00013978,2]
[342002386,1731357041511,-500.0,0.00013978,2]
[342002387,1731357041520,-500.0,0.00013978,2]
[342002388,1731357041529,-500.0,0.00013978,2]
[342002389,1731357041538,-500.0,0.00013978,2]
[342002390,1731357041547,-500.0,0.00013978,2]
[342002391,1731357041556,-500.0,0.00013978,2]
[342002392,1731357041565,-500.0,0.00013978,2]
[342002393,1731357041574,-500.0,0.00013978,2]
[342002394,1731357041582,-500.0,0.00013978,2]
[342002395,1731357041591,-500.0,0.00013978,2]
[342002396,1731357041600,-500.0,0.00013978,2]
[342002397,1731357041609,-500.0,0.00013978,2]
[342002398,1731357041618,-500.0,0.00013978,2]
[342002399,1731357041627,-500.0,0.00013978,2]
[342002400,1731357041636,-500.0,0.00013978,2]
[342002401,1731357041645,-500.0,0.00013978,2]
[342002402,1731357041654,-500.0,0.00013978,2]
[342002403,1731357041666,-500.0,0.00013978,2]
[342002404,1731357041675,-500.0,0.00013978,2]
[342002405,1731357041684,-500.0,0.00013978,2]
[342002406,1731357041693,-529.81,0.00013978,2]
[342002407,1731357041703,-500.0,0.00013978,2]
[342002408,1731357041711,-566.78583296,0.00013978,2]
[342002409,1731357041721,-500.0,0.00013978,2]
[342002410,1731357041730,-500.0,0.00013978,2]
[342002411,1731357041739,-500.0,0.00013978,2]
[342002412,1731357041749,-500.0,0.00013978,2]
[342002413,1731357041759,-675.6,0.00013978,2]
[342002414,1731357041768,-2403.1,0.00013978,2]